bitfinex/quotes_SOLUSD_20250410
["timestamp","ask_amount","ask_price","bid_price","bid_amount"]
[1744304046568,34.64445293,109.45,109.44,0.063]
[1744304046984,43.78095293,109.45,109.44,0.063]
[1744304047156,78.42540586,109.45,109.44,0.063]
[1744304047476,80.08280586,109.45,109.44,0.063]
[1744304047646,99.01677786,109.45,109.44,0.063]
[1744304048273,99.01677786,109.45,109.44,0.0001]
[1744304048463,19.07613357,109.44,109.43,0.0001]
[1744304048681,62.8579865,109.44,109.43,0.0001]
[1744304049054,62.8579865,109.44,109.42,0.0001]
[1744304049371,53.57842493,109.43,109.42,0.0001]
[1744304050172,0.14216157,109.4,109.36,0.063]
[1744304050347,34.64445293,109.38,109.36,0.063]
[1744304050774,43.78685293,109.38,109.36,0.063]
[1744304051161,9.1424,109.38,109.36,0.063]
[1744304051367,43.78685293,109.38,109.36,0.063]
[1744304052477,64.36192493,109.38,109.36,0.063]
[1744304053253,45.42795293,109.38,109.36,0.063]
[1744304053454,10.7835,109.38,109.32,3.1931438]
[1744304053755,34.64445293,109.36,109.32,3.1931438]
[1744304053969,34.64445293,109.36,109.31,0.063]
[1744304054166,34.64445293,109.36,109.31,34.70745293]
[1744304054351,10.7835,109.38,109.31,34.70745293]
[1744304054352,34.64445293,109.35,109.31,34.70745293]
[1744304054562,34.64445293,109.34,109.31,0.063]
[1744304055163,34.64445293,109.32,109.31,0.063]
[1744304055878,32.006,109.36,109.31,0.063]
[1744304056057,34.64445293,109.34,109.31,0.063]
[1744304056589,34.64445293,109.35,109.31,0.063]
[1744304056885,43.78855293,109.36,109.31,34.70745293]
[1744304057273,9.1441,109.36,109.31,0.063]
[1744304057455,34.64445293,109.34,109.31,0.063]
[1744304058882,9.1466,109.33,109.31,0.063]
[1744304059187,9.1449,109.35,109.31,34.70745293]
[1744304059483,43.78935293,109.35,109.31,0.063]
[1744304059665,34.64445293,109.33,109.31,0.063]
[1744304060267,34.64445293,109.32,109.31,0.063]
[1744304060661,34.64445293,109.33,109.31,0.063]
[1744304060873,34.64445293,109.32,109.31,0.063]
[1744304061574,9.1449,109.35,109.31,0.063]
[1744304061779,9.1444,109.36,109.31,18.71264886]
[1744304061967,43.78815293,109.37,109.33,34.64445293]
[1744304062278,34.64445293,109.37,109.33,34.64445293]
[1744304062483,45.42825293,109.38,109.33,34.64445293]
[1744304062687,9.142,109.39,109.35,34.64445293]
[1744304062990,34.64445293,109.37,109.32,81.14216157]
[1744304063155,34.64445293,109.38,109.33,34.64445293]
[1744304063361,34.64445293,109.37,109.33,34.64445293]
[1744304063566,34.64445293,109.38,109.33,34.64445293]
[1744304063767,34.64445293,109.37,109.33,34.64445293]
[1744304063990,34.64445293,109.37,109.33,43.79085293]
[1744304064292,43.78755293,109.38,109.33,43.79085293]
[1744304064592,34.64445293,109.37,109.33,34.64445293]
[1744304064793,34.64445293,109.36,109.32,115.64445293]
[1744304064963,34.64445293,109.37,109.32,115.64445293]
[1744304065979,34.64445293,109.37,109.32,124.79175293]
[1744304066493,34.64445293,109.35,109.32,81.0]
[1744304066781,43.78855293,109.36,109.31,43.85535293]
[1744304066991,43.78855293,109.36,109.32,34.64445293]
[1744304067865,9.1441,109.36,109.31,9.2109]
[1744304068064,43.78855293,109.36,109.32,34.64445293]
[1744304069393,43.78855293,109.36,109.31,9.2109]
[1744304069692,43.78855293,109.36,109.31,0.063]
[1744304069693,34.64445293,109.33,109.31,0.063]
[1744304070797,43.79135293,109.33,109.31,0.063]
[1744304071789,34.64445293,109.35,109.31,0.063]
[1744304072895,43.78935293,109.35,109.31,0.063]
[1744304073094,9.1449,109.35,109.31,34.70745293]
[1744304073283,43.78885293,109.36,109.31,34.70745293]
[1744304073484,43.78885293,109.36,109.32,34.64445293]
[1744304073985,9.1444,109.36,109.32,34.64445293]
[1744304074187,9.1432,109.37,109.31,18.85481043]
[1744304074393,34.64445293,109.36,109.31,18.85481043]
[1744304074696,9.1457,109.34,109.31,0.063]
[1744304074892,1.76426157,109.39,109.31,0.063]
[1744304074893,43.78885293,109.36,109.32,34.64445293]
[1744304075099,9.1437,109.37,109.33,34.64445293]
[1744304075273,9.1427,109.38,109.34,34.64445293]
[1744304075697,34.64445293,109.36,109.32,99.79181043]
[1744304075904,34.64445293,109.36,109.32,115.64445293]
[1744304076192,34.64445293,109.37,109.33,34.64445293]
[1744304076600,34.64445293,109.36,109.32,81.0]
[1744304076782,34.64445293,109.37,109.33,43.79075293]
[1744304077115,43.78715293,109.38,109.34,34.64445293]
[1744304077296,9.1416,109.39,109.35,53.43626336]
[1744304077494,43.78515293,109.4,109.36,34.64445293]
[1744304077691,43.78515293,109.4,109.35,53.43626336]
[1744304077900,34.64445293,109.38,109.34,34.64445293]
[1744304078508,34.64445293,109.39,109.35,34.64445293]
[1744304078692,9.1407,109.4,109.35,34.64445293]
[1744304078897,43.84735293,109.41,109.36,34.64445293]
[1744304079075,0.063,109.41,109.37,34.64445293]
[1744304079275,0.063,109.41,109.38,34.64445293]
[1744304079585,34.64445293,109.4,109.36,81.0]
[1744304080485,18.996972,109.41,109.34,34.64445293]
[1744304080681,34.64445293,109.38,109.33,53.43626336]
[1744304080897,9.1432,109.37,109.33,43.79105293]
[1744304081215,9.1432,109.37,109.34,34.64445293]
[1744304081406,43.78765293,109.37,109.32,49.81295293]
[1744304081707,43.78765293,109.37,109.33,34.64445293]
[1744304082087,9.1432,109.37,109.33,34.64445293]
[1744304082607,9.1427,109.38,109.35,34.64445293]
[1744304082905,9.1416,109.39,109.35,34.64445293]
[1744304083106,9.1407,109.4,109.36,34.64445293]
[1744304083280,9.1407,109.4,109.37,34.64445293]
[1744304083481,43.78515293,109.4,109.35,90.1448]
[1744304083680,34.64445293,109.39,109.35,81.0]
[1744304084300,34.64445293,109.38,109.33,34.64445293]
[1744304084710,34.64445293,109.38,109.32,96.31046157]
[1744304084884,9.1432,109.37,109.33,34.64445293]
[1744304085081,43.78605293,109.39,109.35,34.64445293]
[1744304085401,9.1416,109.39,109.35,34.64445293]
[1744304085587,9.1416,109.39,109.36,34.64445293]
[1744304086215,9.1416,109.39,109.35,53.29410179]
[1744304086415,9.1416,109.39,109.36,34.64445293]
[1744304086720,34.70745293,109.41,109.37,34.7866145]
[1744304086904,43.84775293,109.41,109.36,53.29410179]
[1744304087211,34.64445293,109.4,109.36,53.29410179]
[1744304087799,9.2033,109.41,109.38,34.64445293]
[1744304088097,9.2033,109.41,109.39,34.64445293]
[1744304088098,0.063,109.41,109.39,34.64445293]
[1744304089010,0.063,109.41,109.38,34.64445293]
[1744304089193,0.063,109.41,109.39,34.64445293]
[1744304089390,0.063,109.41,109.38,18.64964886]
[1744304089585,0.063,109.41,109.4,53.43626336]
[1744304089791,0.063,109.41,109.4,88.36503943]
[1744304090217,0.063,109.41,109.4,53.43626336]
[1744304090418,0.063,109.41,109.4,18.79181043]
[1744304090715,0.063,109.41,109.4,53.43626336]
[1744304091016,0.063,109.41,109.4,62.57696336]
[1744304091387,0.063,109.41,109.4,53.43626336]
[1744304091587,0.063,109.41,109.39,18.79181043]
[1744304091803,0.063,109.41,109.4,34.64445293]
[1744304092913,0.063,109.41,109.4,53.7205865]
[1744304093511,0.063,109.41,109.4,53.43626336]
[1744304093694,0.063,109.41,109.4,34.64445293]
[1744304093895,0.063,109.41,109.39,124.78555293]
[1744304094511,0.063,109.41,109.39,115.64445293]
[1744304094714,0.063,109.41,109.39,81.0]
[1744304095092,34.70745293,109.41,109.36,143.57966336]
[1744304095295,34.64445293,109.37,109.31,0.063]
[1744304095586,34.64445293,109.37,109.32,34.64445293]
[1744304095790,34.64445293,109.37,109.33,34.64445293]
[1744304096203,1.5573,109.4,109.31,34.70406157]
[1744304096401,34.64445293,109.37,109.32,0.14216157]
[1744304096606,34.64445293,109.37,109.32,53.43626336]
[1744304096795,9.1441,109.36,109.32,53.43626336]
[1744304097202,9.1441,109.36,109.33,34.64445293]
[1744304097609,34.64445293,109.37,109.33,34.64445293]
[1744304097610,9.1436,109.37,109.33,34.64445293]
[1744304097809,9.1436,109.37,109.34,34.64445293]
[1744304098118,9.1436,109.37,109.33,34.64445293]
[1744304099015,9.1436,109.37,109.34,34.64445293]
[1744304099214,9.1436,109.37,109.32,24.74946157]
[1744304099215,9.1416,109.39,109.35,34.64445293]
[1744304099399,34.64445293,109.38,109.34,34.64445293]
[1744304099720,34.64445293,109.38,109.34,34.7866145]
[1744304100018,43.78605293,109.39,109.34,0.14216157]
[1744304100322,34.64445293,109.38,109.34,34.64445293]
[1744304100623,66.64005293,109.39,109.34,34.64445293]
[1744304101030,34.64445293,109.38,109.34,34.64445293]
[1744304101199,66.64005293,109.39,109.34,34.64445293]
[1744304101996,34.64445293,109.38,109.34,34.64445293]
[1744304102317,34.64445293,109.36,109.32,96.46]
[1744304102494,34.64445293,109.37,109.33,34.64445293]
[1744304103517,9.1418,109.39,109.34,34.64445293]
[1744304103818,43.78625293,109.39,109.34,34.64445293]
[1744304104020,10.6984,109.4,109.36,34.64445293]
[1744304104231,45.34285293,109.4,109.36,34.64445293]
[1744304104523,0.063,109.41,109.37,0.14216157]
[1744304104698,0.063,109.41,109.37,34.7866145]
[1744304105200,26.063,109.41,109.37,43.9298145]
[1744304105527,34.64445293,109.39,109.33,18.64964886]
[1744304105698,0.063,109.41,109.34,34.7866145]
[1744304105894,34.64445293,109.39,109.34,34.7866145]
[1744304106133,34.70745293,109.41,109.36,34.64445293]
[1744304106427,0.063,109.41,109.38,34.7866145]
[1744304106721,34.70745293,109.41,109.38,0.14216157]
[1744304107026,0.063,109.41,109.39,34.64445293]
[1744304107332,0.063,109.41,109.39,43.78575293]
[1744304107922,0.063,109.41,109.4,34.64445293]
[1744304108222,0.063,109.41,109.39,43.78575293]
[1744304108928,34.70745293,109.41,109.36,81.0]
[1744304109224,34.64445293,109.4,109.36,124.78815293]
[1744304109419,43.78525293,109.4,109.36,81.0]
[1744304109619,9.1408,109.4,109.36,115.64445293]
[1744304109924,43.78525293,109.4,109.36,115.64445293]
[1744304110300,9.1408,109.4,109.36,115.64445293]
[1744304110497,9.2033,109.41,109.37,34.64445293]
[1744304110702,34.64445293,109.4,109.36,124.78845293]
[1744304110939,34.64445293,109.39,109.34,34.7866145]
[1744304111111,43.78655293,109.39,109.34,43.9316145]
[1744304111316,34.64445293,109.38,109.33,43.79075293]
[1744304112158,33.529,109.39,109.33,43.79075293]
[1744304112327,34.64445293,109.38,109.33,43.79075293]
[1744304112513,10.675,109.39,109.35,34.64445293]
[1744304112716,34.64445293,109.38,109.34,34.64445293]
[1744304113431,9.1432,109.37,109.34,34.64445293]
[1744304114135,34.64445293,109.36,109.31,0.063]
[1744304114315,34.64445293,109.36,109.31,43.85535293]
[1744304114805,34.64445293,109.35,109.31,43.85535293]
[1744304115134,34.64445293,109.36,109.32,34.64445293]
[1744304115514,34.64445293,109.36,109.31,43.85535293]
[1744304115716,9.1449,109.35,109.31,43.85535293]
[1744304116121,9.1449,109.35,109.32,34.64445293]
[1744304116430,10.6746,109.39,109.34,34.64445293]
[1744304116630,10.6746,109.39,109.36,34.64445293]
[1744304116936,34.64445293,109.37,109.33,81.14216157]
[1744304117150,34.64445293,109.37,109.33,115.64445293]
[1744304117640,10.6746,109.39,109.34,34.64445293]
[1744304117824,10.6746,109.39,109.35,34.64445293]
[1744304118135,45.31905293,109.39,109.35,34.64445293]
[1744304118525,10.6746,109.39,109.35,34.64445293]
[1744304118736,0.063,109.41,109.38,34.64445293]
[1744304118921,0.063,109.41,109.4,34.64445293]
[1744304119113,0.063,109.41,109.39,26.0]
[1744304119312,0.063,109.41,109.39,34.64445293]
[1744304119816,0.063,109.41,109.38,124.9288145]
[1744304120056,34.70745293,109.41,109.38,81.0]
[1744304120221,34.64445293,109.39,109.34,115.64445293]
[1744304120539,34.64445293,109.38,109.34,34.64445293]
[1744304120929,34.64445293,109.36,109.31,50.42635293]
[1744304121119,34.64445293,109.36,109.33,2.48]
[1744304121313,34.64445293,109.35,109.33,2.48]
[1744304121519,34.64445293,109.34,109.31,0.063]
[1744304121849,31.9984,109.38,109.31,34.8496145]
[1744304122019,9.1424,109.38,109.33,34.64445293]
[1744304122218,43.78685293,109.38,109.33,34.64445293]
[1744304122418,34.64445293,109.37,109.32,34.64445293]
[1744304122712,34.64445293,109.37,109.33,34.64445293]
[1744304123126,9.1424,109.38,109.33,43.79065293]
[1744304123127,43.78685293,109.38,109.33,43.79065293]
[1744304124022,34.64445293,109.37,109.33,43.79065293]
[1744304124224,34.64445293,109.38,109.34,34.64445293]
[1744304124447,34.64445293,109.38,109.33,43.79065293]
[1744304124749,34.64445293,109.38,109.34,34.64445293]
[1744304124952,43.78635293,109.39,109.35,34.64445293]
[1744304125242,9.1419,109.39,109.35,43.78875293]
[1744304125446,34.64445293,109.38,109.32,81.0]
[1744304125752,34.64445293,109.37,109.32,115.64445293]
[1744304125932,34.64445293,109.37,109.33,34.64445293]
[1744304126131,34.64445293,109.37,109.32,115.64445293]
[1744304126343,34.64445293,109.34,109.32,81.0]
[1744304126644,34.64445293,109.33,109.31,0.063]
[1744304127351,34.64445293,109.32,109.31,0.063]
[1744304127553,34.64445293,109.33,109.31,0.063]
[1744304127844,45.29455293,109.34,109.31,0.063]
[1744304128154,10.6501,109.34,109.31,34.70745293]
[1744304128313,45.29455293,109.34,109.31,0.063]
[1744304128743,34.64445293,109.33,109.31,0.063]
[1744304128925,10.6501,109.34,109.31,0.063]
[1744304129128,34.64445293,109.33,109.31,0.063]
[1744304129318,45.29455293,109.34,109.31,0.063]
[1744304130430,34.64445293,109.33,109.31,0.063]
[1744304130822,45.29455293,109.34,109.31,0.063]
[1744304131645,34.64445293,109.32,109.31,0.063]
[1744304132034,33.5145,109.34,109.31,0.063]
[1744304132358,10.6501,109.34,109.31,0.063]
[1744304132519,10.6501,109.34,109.31,34.70745293]
[1744304132725,9.1464,109.34,109.31,34.70745293]
[1744304133050,9.1453,109.35,109.31,34.8496145]
[1744304133723,43.78915293,109.36,109.31,34.8496145]
[1744304133924,10.6511,109.37,109.34,34.64445293]
[1744304134123,10.6511,109.37,109.33,34.64445293]
[1744304134921,34.64445293,109.36,109.31,124.9975145]
[1744304135247,34.64445293,109.34,109.31,0.063]
[1744304135424,34.64445293,109.35,109.31,34.70745293]
[1744304135819,34.64445293,109.36,109.31,43.85565293]
[1744304136028,33.5092,109.37,109.31,43.85565293]
[1744304136227,34.64445293,109.35,109.31,43.85565293]
[1744304136425,43.79015293,109.34,109.31,0.063]
[1744304137154,43.78855293,109.36,109.31,34.70745293]
[1744304137448,30.89639132,109.36,109.32,21.75229132]
[1744304138134,30.89639132,109.36,109.31,9.2112]
[1744304138317,30.89639132,109.36,109.32,21.75229132]
[1744304139123,21.75229132,109.33,109.31,0.063]
[1744304139337,21.75229132,109.35,109.31,0.063]
[1744304139532,32.0043,109.36,109.33,21.75229132]
[1744304139533,9.1441,109.36,109.33,21.75229132]
[1744304140342,10.6511,109.37,109.33,21.75229132]
[1744304140939,32.40339132,109.37,109.33,9.1465]
[1744304141232,32.40339132,109.37,109.33,21.75229132]
[1744304142170,10.6511,109.37,109.33,21.75229132]
[1744304142551,9.1428,109.38,109.34,21.89445289]
[1744304142729,30.89389132,109.39,109.34,31.04005289]
[1744304142930,30.89389132,109.39,109.34,30.89789132]
[1744304143229,21.75229132,109.38,109.33,30.89839132]
[1744304143743,9.2041,109.4,109.37,21.75229132]
[1744304144054,0.063,109.4,109.38,21.75229132]
[1744304144232,0.063,109.4,109.37,21.75229132]
[1744304144729,9.2037,109.4,109.35,9.57058471]
[1744304145052,9.2037,109.4,109.36,21.75229132]
[1744304145253,9.2037,109.4,109.37,21.75229132]
[1744304145753,9.2037,109.4,109.36,21.75229132]
[1744304146357,9.2037,109.4,109.34,30.89739132]
[1744304146358,21.75229132,109.39,109.34,30.89739132]
[1744304146742,21.75229132,109.39,109.35,21.75229132]
[1744304146939,21.75229132,109.39,109.35,30.89699132]
[1744304147156,21.81529132,109.4,109.35,30.89699132]
[1744304147450,21.81529132,109.4,109.36,21.75229132]
[1744304147653,21.81529132,109.4,109.35,30.89699132]
[1744304147849,21.81529132,109.4,109.35,0.14216157]
[1744304147850,21.75229132,109.39,109.35,0.14216157]
[1744304148029,21.75229132,109.39,109.35,21.89445289]
[1744304148956,0.063,109.4,109.35,9.28646157]
[1744304148957,21.81529132,109.4,109.35,9.28646157]
[1744304149136,21.81529132,109.4,109.36,21.75229132]
[1744304149334,21.75229132,109.38,109.34,21.75229132]
[1744304149533,21.75229132,109.37,109.33,96.48216157]
[1744304149853,21.75229132,109.37,109.33,118.23445289]
[1744304150352,0.063,109.4,109.36,21.75229132]
[1744304150654,0.063,109.4,109.34,0.28432314]
[1744304150850,21.81529132,109.4,109.34,19.07613357]
[1744304151035,9.1416,109.39,109.36,21.75229132]
[1744304151349,9.1416,109.39,109.35,30.89719132]
[1744304151552,30.95609132,109.4,109.36,21.75229132]
[1744304152055,0.063,109.4,109.36,0.14216157]
[1744304152235,0.063,109.4,109.38,21.75229132]
[1744304152436,0.063,109.4,109.37,21.75229132]
[1744304152768,0.063,109.4,109.39,21.89445289]
[1744304153053,0.063,109.4,109.39,152.72231621]
[1744304153263,0.063,109.4,109.39,168.06231621]
[1744304154259,0.063,109.4,109.39,146.31002489]
[1744304154450,0.063,109.4,109.39,150.83937433]
[1744304156154,0.063,109.4,109.39,131.90540233]
[1744304156350,0.063,109.4,109.39,81.0]
[1744304157437,0.063,109.4,109.39,112.03605289]
[1744304158165,0.063,109.4,109.39,102.89445289]
[1744304158367,0.063,109.4,109.39,81.14216157]
[1744304158753,0.063,109.4,109.39,90.28376157]
[1744304159450,0.063,109.4,109.39,112.03605289]
[1744304159657,0.063,109.4,109.39,148.53775892]
[1744304160534,0.063,109.4,109.38,0.14216157]
[1744304160745,0.063,109.4,109.39,34.88562572]
[1744304161039,0.063,109.4,109.39,44.02722572]
[1744304161258,0.063,109.4,109.39,0.14216157]
[1744304161564,0.063,109.4,109.39,9.28376157]
[1744304161752,0.063,109.4,109.39,44.02722572]
[1744304161950,0.063,109.4,109.39,34.88562572]
[1744304162352,0.063,109.4,109.39,0.14216157]
[1744304163774,0.063,109.4,109.39,62.96119772]
[1744304164069,0.063,109.4,109.39,143.96119772]
[1744304165374,0.063,109.4,109.39,81.14216157]
[1744304165576,0.063,109.4,109.39,115.88562572]
[1744304165873,0.063,109.4,109.39,125.02722572]
[1744304166261,0.063,109.4,109.39,143.96119772]
[1744304166456,0.063,109.4,109.39,178.70466187]
[1744304166853,0.063,109.4,109.39,143.96119772]
[1744304167063,0.063,109.4,109.39,178.70466187]
[1744304167377,0.063,109.4,109.39,143.96119772]
[1744304167958,0.063,109.4,109.39,178.70466187]
[1744304168760,0.063,109.41,109.4,19.07613357]
[1744304169065,0.063,109.41,109.4,89.77936187]
[1744304169247,0.063,109.41,109.4,81.14216157]
[1744304169443,36.42146415,109.41,109.37,81.0]
[1744304169647,34.74346415,109.4,109.38,2.48]
[1744304170046,34.74346415,109.39,109.38,2.48]
[1744304170247,34.74346415,109.4,109.34,15.34]
[1744304170566,1.678,109.41,109.36,0.14216157]
[1744304170567,34.74346415,109.39,109.36,0.14216157]
[1744304170761,27.678,109.41,109.37,43.88666415]
[1744304170956,34.74346415,109.4,109.34,114.98964886]
[1744304171159,27.678,109.41,109.35,34.88562572]
[1744304171369,62.42146415,109.41,109.36,34.74346415]
[1744304171568,1.678,109.41,109.37,34.74346415]
[1744304171754,34.74346415,109.4,109.35,81.14216157]
[1744304172077,40.81356415,109.38,109.35,81.0]
[1744304172259,8.0899,109.41,109.37,34.74346415]
[1744304172464,42.83336415,109.41,109.37,34.74346415]
[1744304172764,1.678,109.41,109.38,43.88586415]
[1744304173852,36.42146415,109.41,109.37,9.28496157]
[1744304174051,45.56136415,109.41,109.36,43.88706415]
[1744304174256,34.74346415,109.4,109.36,9.1436]
[1744304174483,34.74346415,109.4,109.36,43.88706415]
[1744304174689,34.74346415,109.39,109.35,81.0]
[1744304174886,34.74346415,109.38,109.35,81.0]
[1744304175182,34.74346415,109.38,109.34,43.88876415]
[1744304175852,10.8179,109.41,109.35,34.88562572]
[1744304176065,36.42146415,109.41,109.37,34.74346415]
[1744304176270,34.74346415,109.4,109.36,34.74346415]
[1744304176478,36.42146415,109.41,109.36,34.74346415]
[1744304176691,36.42146415,109.41,109.35,81.14216157]
[1744304176889,36.42146415,109.41,109.37,9.1432]
[1744304177278,36.8179,109.41,109.37,9.1432]
[1744304177590,60.74346415,109.4,109.36,9.1438]
[1744304177782,60.74346415,109.4,109.36,43.88726415]
[1744304177981,57.24346415,109.4,109.36,43.88726415]
[1744304178376,26.0,109.4,109.37,34.74346415]
[1744304180265,69.88416415,109.4,109.36,34.74346415]
[1744304180467,34.74346415,109.38,109.35,81.0]
[1744304180671,34.74346415,109.38,109.34,34.74346415]
[1744304180886,43.88766415,109.36,109.32,0.14216157]
[1744304181074,1.556,109.36,109.32,0.14216157]
[1744304181274,1.556,109.36,109.32,34.88562572]
[1744304181485,36.29946415,109.36,109.32,0.14216157]
[1744304181685,45.44356415,109.36,109.32,34.74346415]
[1744304181878,45.44356415,109.36,109.31,81.063]
[1744304182075,45.44356415,109.36,109.31,115.80646415]
[1744304182492,10.7001,109.36,109.32,34.74346415]
[1744304182703,34.74346415,109.35,109.31,81.063]
[1744304182922,38.88896415,109.35,109.31,81.063]
[1744304183196,43.88896415,109.35,109.31,81.063]
[1744304183380,9.1455,109.35,109.31,115.80646415]
[1744304183578,45.44396415,109.36,109.32,34.74346415]
[1744304184911,34.74346415,109.34,109.31,0.063]
[1744304185115,9.1466,109.33,109.31,0.063]
[1744304185284,9.1461,109.34,109.31,0.063]
[1744304185794,9.1461,109.34,109.31,0.20516157]
[1744304185994,9.1461,109.34,109.31,34.80646415]
[1744304186182,43.88956415,109.34,109.31,0.063]
[1744304186383,34.74346415,109.33,109.31,0.063]
[1744304186604,32.0105,109.34,109.31,0.063]
[1744304186905,34.74346415,109.33,109.31,0.063]
[1744304187108,43.89086415,109.32,109.31,0.063]
[1744304187312,26.0,109.3,109.29,0.063]
[1744304187524,60.74346415,109.3,109.29,0.063]
[1744304187680,95.4869283,109.3,109.29,0.063]
[1744304188220,60.74346415,109.3,109.29,0.063]
[1744304188584,26.0,109.3,109.29,0.063]
[1744304188805,60.74346415,109.3,109.29,0.063]
[1744304189301,69.89256415,109.3,109.29,0.063]
[1744304191285,127.5088283,109.3,109.24,196.26906887]
[1744304191605,34.74346415,109.28,109.24,115.77346415]
[1744304191783,34.74346415,109.29,109.24,115.77346415]
[1744304191985,58.0219,109.3,109.24,115.77346415]
[1744304192184,36.27006415,109.26,109.24,0.03]
[1744304192398,34.74346415,109.25,109.24,0.03]
[1744304192600,36.27006415,109.26,109.24,0.03]
[1744304193300,9.1533,109.25,109.24,0.03]
[1744304193483,10.6794,109.26,109.24,0.03]
[1744304196401,45.42286415,109.26,109.24,0.03]
[1744304197390,9.1533,109.25,109.24,0.03]
[1744304198830,43.89676415,109.25,109.24,0.03]
[1744304200506,9.1533,109.25,109.24,0.03]
[1744304202018,52.7391689,109.25,109.24,0.03]
[1744304202219,21.79293445,109.24,109.23,0.03]
[1744304202533,9.1533,109.25,109.23,0.03]
[1744304202727,21.79293445,109.24,109.23,0.03]
[1744304203819,9.1541,109.24,109.23,0.03]
[1744304204012,30.94703445,109.24,109.23,0.03]
[1744304207333,9.1541,109.24,109.23,0.03]
[1744304208534,30.94703445,109.24,109.23,0.03]
[1744304210538,99.60303445,109.24,109.2,0.03]
[1744304210731,21.79293445,109.21,109.2,0.03]
[1744304211038,77.8101,109.24,109.2,0.03]
[1744304211241,21.79293445,109.22,109.2,0.03]
[1744304212338,9.1566,109.21,109.2,0.03]
[1744304216729,30.94953445,109.21,109.2,0.03]
[1744304217538,9.1561,109.22,109.2,0.03]
[1744304217732,21.79293445,109.21,109.2,0.03]
[1744304217935,9.1561,109.22,109.2,0.03]
[1744304217936,30.94903445,109.22,109.2,0.03]
[1744304218519,21.79293445,109.21,109.2,0.03]
[1744304218720,9.1566,109.21,109.2,0.03]
[1744304220323,9.156,109.22,109.2,0.03]
[1744304222045,9.156,109.22,109.2,10.03]
[1744304222627,22.8844,109.25,109.2,10.03]
[1744304222832,21.79293445,109.22,109.2,10.03]
[1744304223147,21.79293445,109.21,109.2,10.03]
[1744304223451,21.79293445,109.22,109.2,10.03]
[1744304223747,6.3288,109.23,109.2,10.03]
[1744304224047,9.1541,109.24,109.2,40.97993445]
[1744304224353,10.6794,109.26,109.22,21.79293445]
[1744304224652,32.47233445,109.26,109.22,21.79293445]
[1744304224818,32.47233445,109.26,109.22,30.94853445]
[1744304225017,10.6794,109.26,109.22,30.94853445]
[1744304225243,30.94503445,109.27,109.22,81.0]
[1744304225546,21.79293445,109.25,109.22,81.0]
[1744304225752,21.79293445,109.26,109.22,81.0]
[1744304226248,30.94503445,109.27,109.23,21.93509602]
[1744304226655,30.94503445,109.27,109.23,31.08999602]
[1744304226852,9.1512,109.28,109.24,21.79293445]
[1744304227354,30.94413445,109.28,109.23,112.08999602]
[1744304227651,30.94413445,109.28,109.23,81.0]
[1744304227652,21.79293445,109.26,109.23,81.0]
[1744304228155,21.79293445,109.25,109.23,81.0]
[1744304228449,21.79293445,109.26,109.23,81.0]
[1744304229430,9.1512,109.28,109.24,21.93509602]
[1744304229629,32.51323445,109.29,109.24,0.14216157]
[1744304229952,10.7203,109.29,109.24,21.93509602]
[1744304230128,32.51323445,109.29,109.24,21.93509602]
[1744304230329,21.79293445,109.28,109.24,21.93509602]
[1744304230755,1.57,109.29,109.25,21.79293445]
[1744304231136,23.36293445,109.29,109.25,21.79293445]
[1744304231357,32.51293445,109.29,109.25,21.79293445]
[1744304231543,0.063,109.29,109.26,0.14216157]
[1744304231848,0.063,109.29,109.26,21.93509602]
[1744304232737,0.063,109.29,109.26,0.14216157]
[1744304232937,0.063,109.29,109.26,21.93509602]
[1744304233429,21.85593445,109.29,109.25,30.94563445]
[1744304233630,0.063,109.29,109.25,30.94563445]
[1744304233945,21.79293445,109.28,109.24,109.09933445]
[1744304234334,21.85593445,109.29,109.24,109.09933445]
[1744304234758,30.94373445,109.28,109.24,102.79293445]
[1744304234951,30.94373445,109.28,109.24,81.0]
[1744304235134,21.79293445,109.25,109.2,10.03]
[1744304235335,47.79293445,109.24,109.21,2.48]
[1744304235650,26.0,109.24,109.21,24.27293445]
[1744304235852,47.79293445,109.24,109.21,2.48]
[1744304236068,47.79293445,109.22,109.21,2.48]
[1744304236266,47.79293445,109.22,109.2,10.03]